Cogmind - Beta 10.2 @@@ ROGUE MODE // 2021.01.18 @ 14:34:26 Player: cavemonk Result: Self-destructed Performance ------------- Evolutions (3) 1500 Regions Visited (6) 1200 Robots Destroyed (87) 435 Value Destroyed (2168) 2168 Prototype IDs (4) 80 Alien Tech Used (0) 0 Bonus (216) 216 TOTAL SCORE: 5599 Bonus ------- High Alert Combat Kills 216 Cogmind --------- Core Integrity 572/700 Matter 296/300 Energy 276/300 System Corruption 3% Temperature Cool (0) Movement Hovering (71) Location -7/Factory Parts ------- > --- POWER (1) -------- Enhanced Nuclear Core > --- PROPULSION (4) --- Armored Treads Aerolev Unit Gravmag System > --- UTILITY (6) ------ Advanced Signal Interpreter Advanced Terrain Scanner Improved Melee Analysis Suite Improved Power Shielding Improved Medium Armor Plating > --- WEAPON (2) ------- Spear > --- INVENTORY (4) ---- Enhanced Nuclear Core Gravmag System Improved Grenade Launcher Powered Hammer Peak State ------------ > --- POWER ------------ Enhanced Nuclear Core > --- PROPULSION ------- Aerolev Unit Aerolev Unit Aerolev Unit Gravmag System > --- UTILITY ---------- Advanced Sensor Array Advanced Signal Interpreter Advanced Terrain Scanner Improved Melee Analysis Suite Improved Power Shielding Improved Medium Armor Plating > --- WEAPON ----------- Powered Hammer Spear > --- INVENTORY -------- Enhanced Nuclear Core Improved Signal Interpreter Shock Bomb Launcher Improved Grenade Launcher [Rating: 50] Favorites ----------- Power Ion Engine Engine Ion Engine Power Core Enhanced Nuclear Core Propulsion Light Treads Treads Light Treads Wheel Wheel Hover Unit Aerolev Unit Utility Improved Targeting Computer Device Advanced Terrain Scanner Storage High-capacity Storage Unit Processor Improved Targeting Computer Protection Improved Power Shielding Weapon Shotgun Energy Gun Improved EM Shotgun Ballistic Gun Shotgun Ballistic Cannon Flak Cannon Launcher Shock Bomb Launcher Impact Weapon Powered Hammer Slashing Weapon Katana Piercing Weapon Spear Build | -11 -10 -10 -10 -9 -8 -7 ------- Run | Scr Mat Min Exi Min Mat Fac Slots Evolved 6 | . . . . . 4 2 Power . | . . . . . . . Propulsion 2 | . . . . . . 2 Utility 4 | . . . . . 4 . Weapon . | . . . . . . . Parts Attached 90 | 10 5 1 . . 31 43 Power 6 | 1 . . . . 2 3 Engine 3 | 1 . . . . 1 1 Core 3 | . . . . . 1 2 Reactor . | . . . . . . . Propulsion 31 | 5 . 1 . . 8 17 Treads 16 | 2 . . . . 6 8 Leg . | . . . . . . . Wheel 5 | 3 . 1 . . 1 . Hover 10 | . . . . . 1 9 Flight . | . . . . . . . Utility 30 | 2 3 . . . 9 16 Device 9 | 1 . . . . 2 6 Storage 5 | 1 2 . . . 2 . Processor 8 | . 1 . . . 2 5 Hackware . | . . . . . . . Protection 8 | . . . . . 3 5 Artifact . | . . . . . . . Weapon 23 | 2 2 . . . 12 7 Energy Gun 2 | . . . . . 1 1 Energy Cannon . | . . . . . . . Ballistic Gun 7 | 2 2 . . . 3 . Ballistic Cannon 3 | . . . . . 3 . Launcher 7 | . . . . . 4 3 Special Weapon . | . . . . . . . Impact Weapon 1 | . . . . . . 1 Slashing Weapon 2 | . . . . . 1 1 Piercing Weapon 1 | . . . . . . 1 Special Melee Weapon . | . . . . . . . Unidentified Prototypes 2 | . . . . . 1 1 Parts Lost 15 | . . . . . 10 5 Power 2 | . . . . . 2 . Propulsion 6 | . . . . . 3 3 Utility 4 | . . . . . 3 1 Weapon 3 | . . . . . 2 1 Highest Loss Streak 4 | . . . . . 4 3 Average Slot Usage (%) 97 | . 98 100 100 100 98 94 Engine 8 | . 14 14 14 14 6 . Core 2 | . . . . . 2 6 Treads 10 | . 14 14 14 14 11 3 Wheel 8 | . 14 14 14 14 6 . Hover 5 | . . . . . . 22 Device 5 | . 1 . . . 8 12 Storage 11 | . 14 14 14 14 17 . Processor 16 | . 11 14 14 14 19 17 Protection 5 | . . . . . 7 14 Ballistic Gun 14 | . 28 28 28 28 5 . Ballistic Cannon 2 | . . . . . 9 . Launcher 1 | . . . . . 1 4 Slashing Weapon 1 | . . . . . . 3 Piercing Weapon 1 | . . . . . . 3 Naked Turns . | . . . . . . . Heaviest Build 93 | 14 43 43 43 43 93 44 Greatest Support 44 | 20 20 20 10 10 40 44 Greatest Overweight (x) 9 | 1 4 4 4 4 9 . Average Overweight (x) 2 | . 2 3 4 4 5 . Largest Inventory Capacity 20 | 6 12 12 12 12 20 20 Average Capacity 11 | 5 11 12 12 12 19 4 Most Carried 20 | 6 12 12 12 12 20 20 Average Carried 11 | 3 10 11 12 11 17 4 Final Capacity 20 | 6 12 12 12 12 20 4 Final Carried 20 | 5 12 12 12 12 20 4 Class Distribution -------------------- 73% | Mutant 25% | Hauler-Mutant Dominant Class ---------------- Mutant | -10/Materials Mutant | -10/Mines Mutant | -10/Exiles Mutant | -9/Mines Hauler-Mutant | -8/Materials Mutant | -7/Factory Resources | -11 -10 -10 -10 -9 -8 -7 ----------- Run | Scr Mat Min Exi Min Mat Fac Matter Collected 1745 | 324 180 106 . . 658 477 Remotely 60 | . . . . . 60 . Salvage Created 2571 | 107 140 212 . . 1079 1033 Parts 150 | 10 15 18 . . 54 53 Haulers Intercepted 3 | . . . . . 2 1 Recyclers Shooed 6 | . 1 . . . 2 3 Parts Field Recycled . | . . . . . . . Retrieved Matter . | . . . . . . . Parts Self-Destructed . | . . . . . . . Prevented . | . . . . . . . Kills | -11 -10 -10 -10 -9 -8 -7 ------- Run | Scr Mat Min Exi Min Mat Fac Combat Hostiles Destroyed 51 | . 7 8 . . 25 11 Melee 2 | . . . . . . 2 Guns 16 | . 7 8 . . 1 . Cannons 10 | . . . . . 10 . AOE 21 | . . . . . 12 9 Classes Destroyed 11 | 2 2 . . . 6 1 Worker 8 | . . . . . 1 7 Builder 6 | . . . . . 3 3 Tunneler 3 | 2 . . . . . 1 Hauler 3 | . . . . . 2 1 Recycler 11 | 1 . . . . 4 6 Watcher 5 | . . . . . 2 3 Swarmer 24 | . 5 4 . . 8 7 Grunt 20 | . 2 4 . . 12 2 Duelist 2 | . . . . . 2 . Sentry 3 | . . . . . 3 . Programmer 2 | . . . . . . 2 Best Kill Streak 15 | 1 3 3 . . 15 15 Combat Bots Only 8 | . 3 3 . . 8 5 Max Kills in Single Turn 6 | 1 1 1 . . 4 6 Gunslinging . | . . . . . . . Exploded 4 | . . . . . 4 4 Melee 1 | . . . . . . 1 Uniques/NPCs Destroyed . | . . . . . . . Combat | -11 -10 -10 -10 -9 -8 -7 -------- Run | Scr Mat Min Exi Min Mat Fac Damage Taken 2797 | . 140 125 . . 1504 1028 Core 312 | . 24 13 . . 147 128 Absorbed by Shields . | . . . . . . . Core Remaining (%) 86 | 100 . . . 85 73 . Volleys Fired 97 | 4 18 12 . . 52 11 Largest 2 | 2 2 2 . . 2 1 Hottest 88 | 40 46 46 . . 88 36 Shots Fired 142 | 8 36 24 . . 63 11 Gun 76 | 8 36 24 . . 8 . Cannon 34 | . . . . . 34 . Launcher 32 | . . . . . 21 11 Special . | . . . . . . . Kinetic 110 | 8 36 24 . . 42 . Thermal . | . . . . . . . Explosive 13 | . . . . . 13 . Electromagnetic 19 | . . . . . 8 11 Robot Hit Streak 16 | 3 7 6 . . 16 1 Robot Miss Streak 5 | 1 2 5 . . 4 2 Penetration Max . | . . . . . . . Secondary Targets 4 | . 3 1 . . . . Max Gunslinging Chain 1 | . 1 1 . . . . Shots Hit Robots 90 | 5 22 9 . . 27 27 Core Hits 145 | 4 10 14 . . 80 37 Critical Hits 1 | . 1 . . . . . Critical Kills . | . . . . . . . Critical Parts Destroyed 1 | . 1 . . . . . Melee Attacks 53 | . . . . . 1 52 Impact . | . . . . . . . Slashing 19 | . . . . . 1 18 Piercing 34 | . . . . . . 34 Sneak Attacks 9 | . . . . . . 9 Combat Hostiles . | . . . . . . . Follow-up Attacks 1 | . . . . . . 1 Damage Inflicted 7645 | 68 386 307 . . 3185 3699 Guns 909 | 68 376 307 . . 158 . Cannons 774 | . . . . . 774 . Explosions 4421 | . . . . . 2230 2191 Melee 1531 | . . . . . 23 1508 Ramming 10 | . 10 . . . . . Kinetic 1683 | 68 376 307 . . 932 . Thermal 870 | . . . . . . 870 Explosive 2799 | . . . . . 1728 1071 Electromagnetic 752 | . . . . . 502 250 Impact . | . . . . . . . Slashing 491 | . . . . . 23 468 Piercing 1040 | . . . . . . 1040 Highest Corruption 3 | . . . . . 2 3 Average Corruption 1 | . . . . . 1 1 Corruption Purged . | . . . . . . . Effects 4 | . . . . . 2 2 Message Errors 2 | . . . . . 1 1 Heat Flow Errors 1 | . . . . . 1 . Targeting Errors 1 | . . . . . . 1 Overload Shots . | . . . . . . . Overflow Damage 1005 | . . . . . 191 814 Projectiles . | . . . . . . . Explosions 680 | . . . . . 191 489 Melee 325 | . . . . . . 325 Knockbacks 11 | . . . . . 11 . Impact . | . . . . . . . Kinetic 8 | . . . . . 8 . Secondary 3 | . . . . . 3 . Self-Inflicted Damage 1068 | . . . . . 442 626 Shots 24 | . . . . . 11 13 Rammed 1 | . 1 . . . . . Targets Rammed 1 | . 1 . . . . . Kicked . | . . . . . . . Crushed . | . . . . . . . Highest Temperature 259 | . 6 4 . . 259 22 Average Temperature 66 | . 6 2 . . 116 9 Received Heat Transfer 393 | . . 24 . . 369 . Siege Activations . | . . . . . . . Robots Corrupted 2 | . . . . . 2 . Combat Hostiles 2 | . . . . . 2 . Parts Fried 6 | . . . . . 3 3 Impact Corruptions 1 | . 1 . . . . . Robots Melted . | . . . . . . . Combat Hostiles . | . . . . . . . Parts Melted . | . . . . . . . Heat Transferred 550 | . . . . . . 550 Parts Sabotaged . | . . . . . . . Parts Stolen . | . . . . . . . Parts Stripped . | . . . . . . . Power Chain Reactions 2 | . . . . . 1 1 Missiles Intercepted . | . . . . . . . Alert | -11 -10 -10 -10 -9 -8 -7 ------- Run | Scr Mat Min Exi Min Mat Fac Peak Influence 1129 | 15 338 238 . . 609 1129 Initial 263 | . 9 53 . . . 263 Average 238 | 7 142 119 . . 246 413 Maximum Alert Level 4 | . 1 1 . . 2 4 Low Security (%) 50 | 100 74 81 . 100 57 . Level 1 28 | . 25 18 . . 8 62 Level 2 19 | . . . . . 34 32 Level 3 1 | . . . . . . 4 Level 4 . | . . . . . . . Level 5 . | . . . . . . . High Security . | . . . . . . . Max Security . | . . . . . . . Squads Dispatched 10 | . 4 . . . 3 3 Investigation 3 | . 2 . . . . 1 Extermination 2 | . . . . . . 2 Reinforcement 4 | . 2 . . . 2 . Assault 1 | . . . . . 1 . Garrison . | . . . . . . . Intercept . | . . . . . . . Construction Impeded 1 | . . . . . 1 . Haulers Reinforced . | . . . . . . . Stealth | -11 -10 -10 -10 -9 -8 -7 --------- Run | Scr Mat Min Exi Min Mat Fac Distress Signals 6 | . 1 . . . 4 1 Communications Jammed . | . . . . . . . Distress Signals . | . . . . . . . Times Spotted 112 | . 19 10 . . 50 33 Peak Tracking Total 9 | . 8 3 . . 8 9 Tactical Retreats 16 | . 6 . . . 4 6 Traps | -11 -10 -10 -10 -9 -8 -7 ------- Run | Scr Mat Min Exi Min Mat Fac Traps Triggered 5 | . 2 . . . . 3 Indirectly 2 | . . . . . . 2 Trap Hack Attempts . | . . . . . . . Triggered . | . . . . . . . Disarmed . | . . . . . . . Reprogrammed . | . . . . . . . Reused . | . . . . . . . Traps Extracted . | . . . . . . . Installed . | . . . . . . . Triggered . | . . . . . . . Machines | -11 -10 -10 -10 -9 -8 -7 ---------- Run | Scr Mat Min Exi Min Mat Fac Machines Disabled 31 | . . . . . 3 28 Max in Single Turn 9 | . . . . . 3 9 Machines Sabotaged . | . . . . . . . Garrisons Compromised . | . . . . . . . Overloaded Fab Kills . | . . . . . . . Fab Network Shutdowns . | . . . . . . . Hacking | -11 -10 -10 -10 -9 -8 -7 --------- Run | Scr Mat Min Exi Min Mat Fac Machines Accessed 21 | . 7 . 3 . . 11 Terminals 11 | . 6 . . . . 5 Fabricators 1 | . . . . . . 1 Repair Stations 2 | . . . . . . 2 Recycling Units 2 | . 1 . . . . 1 Scanalyzers 1 | . . . . . . 1 Garrison Access 1 | . . . . . . 1 Total Hacks 58 | . 21 . 3 . . 34 Successful 34 | . 13 . 3 . . 18 Failed 24 | . 8 . . . . 16 Catastrophic 7 | . . . . . . 7 Database Lockouts . | . . . . . . . Manual 25 | . 13 . 3 . . 9 Terminals 30 | . 18 . . . . 12 Fabricators 2 | . . . . . . 2 Repair Stations 9 | . . . . . . 9 Recycling Units 5 | . 3 . . . . 2 Scanalyzers 8 | . . . . . . 8 Garrison Access 1 | . . . . . . 1 Terminal Hacks 13 | . 8 . 3 . . 2 Record 3 | . . . 3 . . . Part Schematic 1 | . . . . . . 1 Robot Analysis 2 | . 2 . . . . . Prototype ID Bank 1 | . 1 . . . . . Emergency Access Points 1 | . 1 . . . . . Terminal Index 2 | . 1 . . . . 1 Recall Investigation 1 | . 1 . . . . . Recall Reinforcements 1 | . 1 . . . . . Hauler Manifests 1 | . 1 . . . . . Fabricator Hacks . | . . . . . . . Repair Station Hacks 8 | . . . . . . 8 Scan Component 4 | . . . . . . 4 Repair 4 | . . . . . . 4 Recycling Unit Hacks 1 | . 1 . . . . . Retrieve Components 1 | . 1 . . . . . Scanalyzer 8 | . . . . . . 8 Insert Component 3 | . . . . . . 3 Analyze 5 | . . . . . . 5 Garrison Access Hacks . | . . . . . . . Unauthorized Hacks 4 | . 4 . . . . . Terminals 3 | . 3 . . . . . Botnet 3 | . 3 . . . . . Fabricators . | . . . . . . . Repair Stations . | . . . . . . . Recycling Units 1 | . 1 . . . . . Mask 1 | . 1 . . . . . Scanalyzers . | . . . . . . . Garrison Access . | . . . . . . . Data Cores Recovered . | . . . . . . . Used . | . . . . . . . Hacking Detections 17 | . 7 . . . . 10 Full Trace Events 1 | . . . . . . 1 Feedback Events . | . . . . . . . Feedback Blocked . | . . . . . . . Robot Schematics Acquired . | . . . . . . . Robots Built . | . . . . . . . Matter . | . . . . . . . Time . | . . . . . . . Total Robot Build Rating . | . . . . . . . Part Schematics Acquired 4 | . . . . . . 4 Parts Built . | . . . . . . . Matter . | . . . . . . . Time . | . . . . . . . Total Part Build Rating . | . . . . . . . Parts Repaired 4 | . . . . . . 4 Time 190 | . . . . . . 190 Parts Recycled . | . . . . . . . Recycled Matter . | . . . . . . . Retrieved Matter . | . . . . . . . Retrieved Components 5 | . 5 . . . . . Parts Scanalyzed 3 | . . . . . . 3 Part Schematics Acquired 3 | . . . . . . 3 Parts Damaged 2 | . . . . . . 2 Bothacking | -11 -10 -10 -10 -9 -8 -7 ------------ Run | Scr Mat Min Exi Min Mat Fac Used RIF Installer . | . . . . . . . Robots Hacked . | . . . . . . . Non-combat . | . . . . . . . Combat . | . . . . . . . Robot Hacks Applied . | . . . . . . . Relay Couplers Released . | . . . . . . . Robots Rewired . | . . . . . . . Allies Hacked . | . . . . . . . Hacks Repelled . | . . . . . . . Allies | -11 -10 -10 -10 -9 -8 -7 -------- Run | Scr Mat Min Exi Min Mat Fac Total Allies 1 | . . 1 . . . . Largest Group 1 | . . 1 1 . . . Highest-Rated Group 31 | . . 31 31 . . . Highest-Rated Ally 31 | . . 31 31 . . . Total Orders . | . . . . . . . Ally Attacks . | . . . . . . . Total Damage . | . . . . . . . Kills . | . . . . . . . Allies Corrupted . | . . . . . . . Allies Melted . | . . . . . . . Intel | -11 -10 -10 -10 -9 -8 -7 ------- Run | Scr Mat Min Exi Min Mat Fac Robot Analysis Total 2 | . 2 . . . . . Derelict Logs Recovered 1 | . . 1 . . . . Drone Launches . | . . . . . . . Drone Recoveries . | . . . . . . . Exploration | -11 -10 -10 -10 -9 -8 -7 ------------- Run | Scr Mat Min Exi Min Mat Fac Turns Passed 4266 | 152 457 781 608 102 1090 1076 Spaces Moved 3160 | 95 328 558 391 84 464 1240 Core 1 | 1 . . . . . . Treads 195 | 13 13 2 . . 167 . Legs . | . . . . . . . Wheels 1724 | 81 315 556 391 84 297 . Hover 1240 | . . . . . . 1240 Flight . | . . . . . . . Fastest Speed 38 | 50 90 120 120 120 120 38 Average Speed 99 | 102 113 120 120 120 175 49 Slowest Speed 240 | 160 200 200 120 120 240 65 Overloaded Moves . | . . . . . . . Propulsion Burnouts . | . . . . . . . Robots Hopped . | . . . . . . . Cave-ins Triggered . | . . . . . . . Exploration Rate (%) 49 | 5 71 84 78 30 47 33 Regions Visited 6 Branch Regions 3 Pre-discovered Areas 1 | . . 1 . . . . Known Exits Taken 1 | . . . . . 1 . Unknown Exits Taken 5 | 1 1 1 1 1 . . Scrap Searched 2 | . . 1 . 1 . . Spaces Dug 65 | . . . . . 15 50 Terrain Destroyed 239 | . . . . . 110 129 Melee 12 | . . . . . . 12 Projectile . | . . . . . . . AOE 227 | . . . . . 110 117 Terrain Rammed . | . . . . . . . Walls Destroyed . | . . . . . . . Machines Disabled . | . . . . . . . Actions | -11 -10 -10 -10 -9 -8 -7 --------- Run | Scr Mat Min Exi Min Mat Fac Total 4090 | 139 380 644 530 85 676 1636 Wait 536 | 22 6 72 138 . 84 214 Move 3154 | 94 327 557 390 83 463 1240 Hop . | . . . . . . . Pick Up 70 | 6 13 1 1 1 27 21 Fast Attach 33 | 8 1 . . . 7 17 Attach 40 | 2 . 1 . . 14 23 Detach 14 | 1 1 . . . 4 8 Swap 17 | . 4 . . . 10 3 Drop 74 | 2 9 1 1 1 14 46 Fire 97 | 4 18 12 . . 52 11 Melee 51 | . . . . . 1 50 Ram . | . . . . . . . Kick . | . . . . . . . Crush 1 | . 1 . . . . . Escape Stasis 3 | . . . . . . 3 Rewire . | . . . . . . . Trap . | . . . . . . . Miscellaneous . | . . . . . . . Route ------- -11/Scrapyard -10/Materials (discovered 2 exits: [*Mat] / [*Min]) -10/Mines (discovered 3 exits: [*Mat x2] / *Exi) -10/Exiles -9/Mines -8/Materials (discovered 3 exits: *Fac x3) -7/Factory (discovered 3 exits: [*Fac x2] / [*Low]) History --------- Turn | Location | Event 11 | -11/Scrapyard | Discovered new exit (range 16) 153 | -11/Scrapyard | Entered Materials 362 | -10/Materials | Build established: Mutant 525 | -10/Materials | Discovered new exit (range 6) 600 | -10/Materials | Discovered new exit (range 9) 610 | -10/Materials | Entered Mines 761 | -10/Mines | Learned location of 1 exit from Materials 926 | -10/Mines | Discovered new exit (range 5) 1241 | -10/Mines | Escorted by a lone wolf Derelict 1261 | -10/Mines | Learned location of Storage (-8) 1307 | -10/Mines | Discovered new exit (range 14) 1381 | -10/Mines | Deemed a non-threat by the Exiles lab entrance 1381 | -10/Mines | Discovered new exit (range 5) 1391 | -10/Mines | Entered Exiles 1391 | -10/Exiles | Found Exiles lab abandoned 1391 | -10/Exiles | Accompanied by 1 ally 1874 | -10/Exiles | Discovered new exit (range 10) 1999 | -10/Exiles | Entered Mines 2013 | -9/Mines | Met a Derelict bent on vengeance 2072 | -9/Mines | Discovered new exit (range 13) 2092 | -9/Mines | Assembled infested the area 2097 | -9/Mines | Assisted by a Guerilla fighting off Assembled 2101 | -9/Mines | Entered Materials 2101 | -8/Materials | Evolved 4 slots: Utility x4 2102 | -8/Materials | Identified exit to Factory 2399 | -8/Materials | Build established: Hauler-Mutant 2409 | -8/Materials | Discovered exit to Factory (range 10) 2782 | -8/Materials | Destroyed 8 combat bots 2860 | -8/Materials | Destroyed 7 combat bots 2860 | -8/Materials | Discovered exit to Factory (range 16) 2901 | -8/Materials | First assault squad dispatched 2988 | -8/Materials | Lost 4 parts (1p2n1u) 3191 | -8/Materials | Entered Factory 3191 | -7/Factory | Evolved 2 slots: Propulsion x2 3225 | -7/Factory | Discovered new exit (range 14) 3260 | -7/Factory | Repaired Rocket Launcher 3418 | -7/Factory | Repaired Aerolev Unit 3480 | -7/Factory | Repaired Aerolev Unit 3501 | -7/Factory | Build established: Mutant 3519 | -7/Factory | Repaired Reactive Plating 3948 | -7/Factory | Discovered new exit (range 10) 3989 | -7/Factory | Discovered new exit (range 13) 4267 | -7/Factory | Self-destructed Last Messages --------------- 04258_ K-01 Serf destroyed. 04258_ Nuclear Reactor explodes. 04258_ S-27 Virus destroyed. 04260_ K-01 Serf collects debris. 04261_ U-05 Engineer lays Concrete. 04264_ Nuclear Reactor explodes. 04264_ K-01 Serf collects debris. 04264_ U-05 Engineer lays Concrete. 04264_ Sneak attack on K-01 Serf. 04264_ K-01 Serf destroyed. 04265_ U-05 Engineer lays Concrete. 04266_ Nuclear Reactor explodes. 04266_ The unstable cave ceiling collapses. 04266_ Nuclear Reactor explodes. 04266_ Shock Bomb Launcher destroyed. 04266_ Destroyed Shock Bomb Launcher. 04266_ Aerolev Unit destroyed. 04266_ Destroyed Aerolev Unit. 04266_ Destroyed Wheel. 04266_ U-05 Engineer lays Concrete. Map ----- +----------------------------------------------------+ | ???????????????????# """ # # ?????????? | | ???????????????????# """ # +??????????? | | ???????????????????# #=! #??????????? | | ???????????????????# # ! # ??? ?????? | | ??????????##??????##"############! #??????????? | | ??????????????????############### #######????? | | ??????????????????## ]]= # # ???? | | ??????? ????????#?## ]== # # """""""?? | | ???????????????????# ]= # # | | ??????????????????## # # """"""""" | | ????????????????? ?# # # | | ???????????????????# # #] """"""""" | | ???????????????????# # # | | ???????????????????# # # """"""""" | | ????? ?????????????# / # | | ??????????????????## # # """"""""" | | ??????????????????## # # | | ?????????????####?## # # ! ! | | ????????#### # +###### #####+###### | | ????? | | ????? ^ | | ?????" // r | | ?????????! | | ????????/ | | ????? ! | | ??????? @ u | | ??????? * wu#################### | | ??????? k # ?????????????????# | | ?????? #??? ??????????????# | | ??"??? #??? ??????????????# | | ????? +??????????????????# | | ???" #?? ? ????????????# | | ???" #??????????????????# | | ?? #??????????????????# | | ?? [% %%*% #??????????????????# | | ?? * !* # # #??????????????????# | | ???? % ### ##### # ?????????????????# | | ?????" ????####????# a + ????????????????? | | ??????? ??????????????# # ???????????????? | | ??????????????????????# #??#??#????????????? | | ????????????#????????## #??????????????????? | | ???????????????#???#??# #??????????????????? | | ??? ??????? ??#???????# #??????????????????? | | ??????????????????????# #??????????????????? | | ?????????????????#????####+####??????????????????? | | ?????????????????????????????????????????????????? | | ?????????? ??? #?????????????????????????????????? | | ???????? ????????????????????????#???????????????? | | ???????? ??????#???#?????""??????????????????????? | | ?????????????????????????????????????????????????? | +----------------------------------------------------+ Best States ------------- Heat Dissipation 53 Energy Generation 17 Energy Capacity 300 Matter Stores 300 Matter Capacity 300 Sight Range 22 Robot Scan Range 16 Terrain Scan Range 20 Terrain Scan Density 10 Armor Coverage 225 Resistance: KI 20 Power Shielding 66 Evasion (%) 62 Targeting Accuracy 20 Melee Accuracy 6 Recoil Reduction 2 Item Schematics ----------------- Adv. Signal Interpreter | -7/Factory | Hacked Adv. Sensor Array | -7/Factory | Scanalyzed Shock Bomb Launcher | -7/Factory | Scanalyzed Aerolev Unit | -7/Factory | Scanalyzed Robot Schematics ------------------ None Fabricated ------------ Nothing Alien Tech Used ----------------- None Achievements -------------- None Challenges ------------ None Game ------ Seed WeldingAerolevShredder Manual? 0 Play Time 01:10:37 Cumulative 133.1 hours Start 2021.01.18 @ 13:14:10 End 2021.01.18 @ 14:34:26 Sessions 1 Manual Loads 0 Difficulty Rogue Special Mode None Game No. 84 Rogue 84 Adventurer 0 Explorer 0 Win Type - Total 3 Types 3/0/0/0/0/0/0/0/0 Lore% 34 Gallery% 56 Achievement% 43 Wizard Run 0 Options --------- ASCII 0 Keyboard 0 Movement Mouse Keybinds 0 Fullscreen 2 Font 18/TerminusBold Map View 76x50 Tactical HUD 1 Map Filters NONE Filters NONE Steam 1 RUN: e18f2481-2e4a-4ac4-809a-e8285255531d